bitfinex/quotes_ETHUSD_20241116
["timestamp","ask_amount","ask_price","bid_price","bid_amount"]
[1731767679949,3.15318,3171.4,3170.1,3.15444]
[1731767680321,3.15415,3170.5,3169.7,3.15485]
[1731767680521,3.15415,3170.5,3169.4,3.15517]
[1731767680522,3.15413,3170.5,3169.4,3.15517]
[1731767680843,3.15424,3170.4,3169.7,3.15478]
[1731767681055,3.15439,3170.2,3169.5,3.84851557]
[1731767682327,3.15439,3170.2,3169.6,0.55]
[1731767682743,3.15439,3170.2,3169.6,3.70494]
[1731767682943,3.15422,3170.4,3169.7,3.15482]
[1731767683155,3.15436,3170.3,3169.8,0.55]
[1731767683547,3.1541,3170.5,3169.6,0.55]
[1731767683751,3.1539,3170.7,3169.6,6.73237524]
[1731767683951,3.15417,3170.4,3169.9,0.55]
[1731767684772,3.15381,3170.8,3170.0,3.15451]
[1731767684983,3.15375,3170.9,3170.3,0.55]
[1731767685138,4.60901306,3171.1,3170.3,0.55]
[1731767685338,3.15417,3170.4,3169.5,3.155]
[1731767685574,3.15444,3170.2,3169.6,3.55]
[1731767685940,3.15444,3170.2,3169.6,0.55]
[1731767686151,3.15473,3169.9,3169.4,0.55]
[1731767686351,3.1546,3170.0,3169.4,0.55]
[1731767687471,3.15475,3169.9,3169.2,6.15535]
[1731767687845,3.1546,3170.0,3169.1,0.06310256]
[1731767688045,4.60901306,3170.7,3169.1,3.06310254]
[1731767688285,4.60901306,3170.7,3169.6,3.1549]
[1731767688286,6.30845,3170.4,3169.6,3.1549]
[1731767688443,6.939295,3170.4,3169.6,3.1549]
[1731767688647,6.939295,3170.4,3169.7,0.55]
[1731767689395,3.785045,3170.4,3169.8,0.55]
[1731767689693,3.15401,3170.6,3170.0,3.15456]
[1731767689982,3.15401,3170.6,3170.1,0.55]
[1731767690191,3.15401,3170.6,3170.0,0.55]
[1731767690691,3.15408,3170.5,3170.0,0.55]
[1731767692665,3.15389,3170.7,3170.1,3.15444]
[1731767692873,3.15389,3170.7,3170.2,0.55]
[1731767693572,3.15371,3170.9,3170.2,0.55]
[1731767693981,7.61462225,3171.0,3170.2,0.55]
[1731767694274,3.15427,3170.3,3170.2,0.55]
[1731767694474,3.785115,3170.3,3170.2,0.55]
[1731767694707,3.15427,3170.3,3170.2,0.55]
[1731767697304,3.15514,3169.5,3168.8,3.15576]
[1731767697490,3.15518,3169.4,3168.8,3.15576]
[1731767697697,3.15518,3169.4,3168.6,3.15594]
[1731767698000,3.15537,3169.2,3168.7,0.315594]
[1731767698164,3.15537,3169.2,3168.3,3.15626]
[1731767698362,3.15528,3169.3,3168.5,3.15599]
[1731767698850,3.1554,3169.2,3168.5,3.15599]
[1731767699155,3.1554,3169.2,3168.3,3.15626]
[1731767699156,3.15557,3169.0,3168.4,3.0]
[1731767699473,0.631097,3169.0,3168.3,3.15618]
[1731767699765,3.15557,3169.0,3168.3,3.15618]
[1731767700265,3.15568,3168.9,3167.9,3.15663]
[1731767700435,3.15568,3168.9,3168.2,3.55]
[1731767700616,3.1557,3168.9,3168.1,0.55]
[1731767700819,3.15528,3169.3,3168.3,0.55]
[1731767701021,7.77303992,3169.5,3168.7,3.15579]
[1731767701220,3.15519,3169.4,3168.8,0.55]
[1731767701828,3.15527,3169.3,3167.9,3.15665]
[1731767702029,3.156,3168.6,3167.9,3.15665]
[1731767702374,3.15614,3168.5,3167.7,3.15685]
[1731767702782,0.315519,3169.3,3167.9,3.15659]
[1731767702783,3.15587,3168.7,3167.9,3.15659]
[1731767703275,3.15567,3168.9,3168.1,3.15643]
[1731767703473,3.15578,3168.8,3168.1,0.63761458]
[1731767703683,3.15604,3168.6,3167.8,3.0]
[1731767703859,3.15607,3168.5,3167.6,6.15693]
[1731767704331,3.15576,3168.8,3167.6,3.0]
[1731767704529,3.15586,3168.7,3167.3,3.15723]
[1731767704737,3.15596,3168.6,3167.3,3.15717]
[1731767704943,3.15655,3168.1,3167.4,3.15715]
[1731767705152,3.15629,3168.3,3167.6,3.15695]
[1731767705538,3.15638,3168.2,3167.5,3.15704]
[1731767705767,3.15657,3168.0,3167.3,3.472887]
[1731767705929,3.15647,3168.1,3167.5,3.15705]
[1731767706129,3.15647,3168.1,3167.3,3.315717]
[1731767706130,3.02744524,3168.8,3167.3,6.472937]
[1731767706344,3.15666,3167.9,3167.3,0.315717]
[1731767706968,3.15642,3168.2,3167.4,6.77020484]
[1731767707269,3.15606,3168.5,3167.4,0.55]
[1731767707439,0.30274452,3168.7,3167.1,3.0]
[1731767707440,3.15683,3167.8,3167.1,3.0]
[1731767707646,3.15683,3167.8,3167.1,3.67751232]
[1731767707845,3.15683,3167.8,3167.1,6.83493232]
[1731767708233,3.15658,3168.0,3167.2,0.06314375]
[1731767708487,3.15677,3167.8,3167.1,6.83487232]
[1731767708980,3.15677,3167.8,3167.2,0.55]
[1731767709336,3.15712,3167.5,3167.2,0.55]
[1731767709678,3.15712,3167.5,3166.5,3.15801]
[1731767709679,3.15707,3167.5,3166.5,3.15801]
[1731767709888,3.02744524,3168.2,3166.4,3.15815]
[1731767709889,3.15743,3167.2,3166.4,3.15815]
[1731767710194,3.15747,3167.1,3166.4,3.473965]
[1731767710350,3.15756,3167.0,3166.4,3.473965]
[1731767710747,3.15768,3166.9,3166.4,0.315815]
[1731767711045,3.15768,3166.9,3166.2,3.15836]
[1731767711252,3.15784,3166.8,3166.1,3.15838]
[1731767711791,3.15787,3166.7,3165.7,38.80511116]
[1731767711993,3.03744524,3167.6,3165.7,35.64627116]
[1731767712204,3.30274452,3167.5,3165.9,3.15858]
[1731767712500,3.30274452,3167.5,3165.7,38.1974554]
[1731767712501,3.15827,3166.3,3165.7,38.1974554]
[1731767712652,3.15827,3166.3,3165.7,3.1974554]
[1731767712850,0.01,3167.2,3165.7,0.35835094]
[1731767712851,3.0,3166.8,3165.7,0.35835094]
[1731767713073,3.15826,3166.3,3165.7,0.0386054]
[1731767713390,3.0,3166.8,3165.7,0.0386054]
[1731767713391,3.15845,3166.1,3165.7,0.0386054]
[1731767713556,3.0,3166.8,3165.7,0.0386054]
[1731767713557,3.15873,3165.9,3165.7,0.0386054]
[1731767713751,3.15875,3165.8,3165.7,0.0386054]
[1731767715745,3.15858,3166.0,3165.7,0.0386054]
[1731767715948,3.15864,3166.0,3165.7,0.0386054]
[1731767716151,3.15875,3165.8,3165.7,0.0386054]
[1731767716603,3.15864,3166.0,3165.7,0.0386054]
[1731767716776,3.15873,3165.9,3165.7,0.0386054]
[1731767717308,0.615773,3166.7,3165.8,0.55]
[1731767717588,0.31274452,3167.5,3166.3,3.1582]
[1731767717589,3.15739,3167.2,3166.3,3.1582]
[1731767717892,3.15716,3167.4,3166.4,0.55]
[1731767718195,3.15747,3167.1,3166.4,0.55]
[1731767719366,3.0,3167.2,3166.4,0.55]
[1731767719569,3.1573,3167.3,3166.4,0.55]
[1731767719876,3.15701,3167.6,3166.9,0.55]
[1731767720081,3.15676,3167.8,3166.9,0.55]
[1731767720279,3.15698,3167.6,3166.9,0.55]
[1731767720669,3.15698,3167.6,3166.9,3.15764]
[1731767720979,3.15698,3167.6,3166.7,0.55]
[1731767720980,3.15737,3167.2,3167.0,0.55]
[1731767721208,3.15713,3167.5,3167.0,0.55]
[1731767721209,3.15714,3167.5,3167.0,0.55]
[1731767721513,3.15714,3167.5,3166.9,0.55]
[1731767722016,3.15688,3167.7,3166.9,0.55]
[1731767722224,3.15688,3167.7,3167.0,3.15748]
[1731767722519,3.15651,3168.1,3167.4,0.55]
[1731767722727,3.15651,3168.1,3167.4,3.70713]
[1731767723721,3.15626,3168.3,3167.5,3.15706]
[1731767723903,3.15589,3168.7,3167.7,3.15684]
[1731767724214,3.15596,3168.6,3167.6,0.55]
[1731767724513,3.15564,3169.0,3168.2,3.15634]
[1731767724716,3.15645,3168.2,3167.8,0.55]
[1731767724943,3.15678,3167.8,3167.0,3.15751]
[1731767725071,3.15697,3167.6,3166.9,3.0]
[1731767725274,3.15706,3167.5,3166.9,3.0]
[1731767725482,3.15706,3167.5,3166.9,6.15765]
[1731767725732,3.15704,3167.6,3166.9,3.15765]
[1731767726211,3.0,3168.0,3166.5,6.83217223]
[1731767726420,3.15704,3167.6,3166.7,0.55]
[1731767726578,3.0,3168.3,3166.9,0.55]
[1731767726779,3.15697,3167.6,3167.1,0.55]
[1731767727214,3.1572,3167.4,3166.9,0.55]
[1731767727382,3.1572,3167.4,3166.7,3.15785]
[1731767727584,3.15696,3167.6,3166.8,0.55]
[1731767727791,3.15696,3167.6,3166.8,3.70774]
[1731767728574,3.15696,3167.6,3166.9,3.15762]
[1731767728785,3.788334,3167.6,3167.0,0.55]
[1731767729012,3.15708,3167.5,3166.9,0.55]
[1731767730051,3.15725,3167.4,3166.9,0.55]
[1731767730189,3.15734,3167.3,3166.7,0.55]
[1731767730393,3.15734,3167.3,3166.6,0.55]
[1731767730590,3.15745,3167.2,3166.6,0.55]
[1731767732029,3.473044,3167.3,3166.8,0.55]
[1731767732198,3.473044,3167.3,3167.0,0.55]
[1731767732199,3.15731,3167.3,3167.0,0.55]
[1731767732385,3.15731,3167.3,3167.1,0.07830841]
[1731767732812,3.15706,3167.5,3167.1,0.07830841]
[1731767733023,0.315706,3167.4,3167.1,0.07830841]
[1731767733327,3.15649,3168.1,3167.4,3.15708]
[1731767733500,3.15649,3168.1,3167.5,0.55]
[1731767733842,3.15628,3168.3,3167.6,3.15696]
[1731767734002,0.631237,3168.3,3167.7,3.70684]
[1731767734185,3.15601,3168.6,3167.9,0.55]
[1731767734390,3.15569,3168.9,3168.2,0.55]
[1731767734391,3.1558,3168.8,3168.2,0.55]
[1731767734688,3.15569,3168.9,3168.4,0.55]
[1731767734689,3.15589,3168.7,3168.4,0.55]
[1731767734888,3.15594,3168.7,3168.4,0.55]
[1731767735191,3.15569,3168.9,3168.5,0.07805963]
[1731767735502,3.15587,3168.7,3168.5,0.07805963]
[1731767736502,0.315569,3168.8,3168.5,0.07805963]
[1731767736828,6.15596,3168.6,3168.5,0.07805963]
[1731767737029,6.15596,3168.6,3167.1,3.15738]
[1731767737030,3.15668,3167.9,3167.3,3.15726]
[1731767737329,3.15668,3167.9,3167.0,3.15753]
[1731767737330,3.15677,3167.8,3167.4,0.07854343]
[1731767737719,3.15677,3167.8,3167.2,3.15734]
[1731767738035,3.15675,3167.9,3167.2,0.55]
[1731767738335,3.15695,3167.7,3167.4,0.55]
[1731767738636,3.472365,3167.9,3166.5,3.15803]
[1731767738637,3.15716,3167.4,3166.5,3.15803]
[1731767738793,3.15746,3167.2,3166.5,3.15803]
[1731767739129,3.15746,3167.2,3166.4,3.15815]
[1731767739333,3.15746,3167.2,3166.4,3.789793]
[1731767739493,3.15757,3167.0,3166.4,3.789793]
[1731767739850,3.15757,3167.0,3166.4,0.631643]
[1731767739995,3.15769,3166.9,3166.1,3.15839]
[1731767740212,3.15797,3166.6,3165.8,6.87148763]
[1731767740511,3.15814,3166.5,3165.8,3.1973554]
[1731767740712,3.15828,3166.3,3165.8,0.0386054]
[1731767741452,3.15808,3166.5,3165.8,0.0386054]
[1731767741623,0.01,3167.2,3165.8,0.0386054]
[1731767741947,3.15776,3166.8,3165.9,3.15861]
[1731767742149,3.15776,3166.8,3165.9,0.06316843]
[1731767742610,3.15766,3166.9,3165.9,3.1586]
[1731767742810,3.0,3166.8,3166.2,0.55]
[1731767743010,3.15848,3166.1,3165.8,0.0386054]
[1731767743453,3.15865,3166.0,3165.8,0.0386054]
[1731767743612,3.15865,3165.9,3165.8,0.0386054]
[1731767744222,0.631713,3166.0,3165.8,0.11746984]
[1731767744426,3.15857,3166.0,3165.8,0.11746984]
[1731767745256,3.15865,3165.9,3165.8,0.11746984]
[1731767745675,3.15865,3165.9,3165.8,0.0386054]
[1731767749829,3.15854,3166.1,3165.8,0.0386054]
[1731767750028,3.15855,3166.0,3165.9,0.0789547]
[1731767752117,3.15827,3166.3,3165.9,0.0789547]
[1731767752377,3.473881,3166.5,3165.9,0.0789547]
[1731767752543,3.15808,3166.5,3165.9,0.0789547]
[1731767754158,3.0,3166.2,3165.9,0.0789547]
[1731767754467,6.15865,3165.9,3165.8,0.0386054]
[1731767756792,6.16865,3165.9,3165.8,5.4e-06]
[1731767756995,7.10037,3165.9,3165.8,5.4e-06]
[1731767758390,11.70540302,3165.9,3165.8,5.4e-06]
[1731767758549,7.10037,3165.9,3165.8,5.4e-06]
[1731767759147,7.11037,3165.9,3165.8,5.4e-06]
[1731767759363,7.10037,3165.9,3165.8,5.4e-06]
[1731767760054,3.15828,3166.3,3165.8,5.4e-06]
[1731767760353,3.15838,3166.2,3165.8,5.4e-06]
[1731767760586,3.67413223,3166.8,3165.9,0.06626883]
[1731767760794,3.15847,3166.1,3165.9,0.06626883]
[1731767760995,3.1584,3166.2,3165.9,0.06626883]
[1731767761200,3.15847,3166.1,3165.9,0.06626883]
[1731767761497,0.36741322,3166.7,3165.9,0.06626883]
[1731767761702,3.15835,3166.3,3165.9,0.06626883]
[1731767761856,3.15837,3166.2,3165.8,5.4e-06]
[1731767762055,3.15846,3166.1,3166.0,0.06650812]
[1731767762382,3.15846,3166.1,3166.0,0.06651752]
[1731767762552,3.15846,3166.1,3165.8,5.4e-06]
[1731767762754,3.15846,3166.1,3165.9,0.06655151]
[1731767762993,3.15855,3166.0,3165.8,5.4e-06]
[1731767763296,3.15859,3166.0,3165.9,0.06655151]
[1731767764386,3.15859,3166.0,3165.8,5.4e-06]
[1731767764715,3.15865,3165.9,3165.8,5.4e-06]
[1731767766938,6.15865,3165.9,3165.8,5.4e-06]
[1731767769089,6.17865,3165.9,3165.8,5.4e-06]
[1731767769635,10.7767217,3165.9,3165.8,5.4e-06]
[1731767770026,6.17865,3165.9,3165.8,5.4e-06]
[1731767770200,7.53687347,3165.9,3165.8,5.4e-06]
[1731767770528,8.08687347,3165.9,3165.8,5.4e-06]
[1731767771107,3.16033,3164.3,3163.5,3.16104]
[1731767771310,3.16044,3164.2,3163.5,3.16104]
[1731767771524,3.16055,3164.1,3163.6,0.06498315]
[1731767771930,3.16055,3164.1,3163.4,0.55]
[1731767772110,3.16055,3164.1,3163.7,0.06494911]
[1731767772431,3.16067,3163.9,3163.8,0.06491507]
[1731767772737,3.16067,3163.9,3163.1,3.16139]
[1731767773036,3.16067,3163.9,3163.2,0.06301463]
[1731767773532,3.16094,3163.7,3163.0,3.67413223]
[1731767773739,3.16078,3163.8,3163.3,0.06298058]
[1731767773936,3.16078,3163.8,3163.1,3.16138]
[1731767774195,3.16078,3163.8,3163.2,0.06301463]
[1731767774479,3.16085,3163.7,3163.2,0.06301463]
[1731767774785,3.16085,3163.7,3162.9,3.16163]
[1731767775143,3.16085,3163.7,3163.0,0.06308273]
[1731767775351,3.16116,3163.4,3163.0,0.06308273]
[1731767775550,3.16116,3163.4,3162.7,3.16183]
[1731767775774,3.16116,3163.4,3162.8,0.06322785]
[1731767775979,3.16125,3163.3,3162.8,0.06322785]
[1731767776382,3.16109,3163.5,3162.8,0.06322785]
[1731767776546,3.16109,3163.5,3162.8,3.22496785]
[1731767776889,3.16106,3163.5,3162.8,0.06322785]
[1731767777094,3.16111,3163.5,3162.8,0.06322785]
[1731767777388,3.16116,3163.4,3162.9,0.06330037]
[1731767777590,3.16116,3163.4,3162.7,3.16185]
[1731767777815,3.16116,3163.4,3162.8,0.06333443]
[1731767778379,3.16126,3163.3,3162.8,0.06333443]
[1731767778675,3.16153,3163.1,3162.6,0.1455694]
[1731767778890,3.16153,3163.1,3162.9,0.06368926]
[1731767779090,3.16153,3163.1,3162.6,0.1455694]
[1731767779316,3.16145,3163.1,3163.0,0.0636552]
[1731767779482,3.16166,3162.9,3162.6,0.1455694]
[1731767779800,3.16185,3162.7,3162.6,0.1455694]
[1731767780997,3.16185,3162.7,3162.6,0.20940698]
[1731767782006,3.16185,3162.7,3162.6,0.20942863]
[1731767782910,0.316145,3163.1,3162.6,0.20942863]
[1731767783067,3.16185,3162.7,3162.6,0.20942863]
[1731767783273,3.16185,3162.7,3162.6,0.1455694]
[1731767784567,6.16185,3162.7,3162.6,0.1455694]
[1731767793016,6.16185,3162.7,3160.8,0.64794201]
[1731767793017,3.16328,3161.3,3160.3,3.16425]
[1731767793228,0.316328,3161.3,3160.4,0.06048008]
[1731767793528,0.316328,3161.3,3160.2,3.22762165]
[1731767793529,3.16377,3160.8,3160.2,0.0632786]
[1731767793747,3.16377,3160.8,3160.5,0.06041628]
[1731767793921,3.16377,3160.8,3160.1,6.20646798]
[1731767793922,3.16384,3160.8,3160.1,6.20646798]
[1731767794123,3.16366,3160.9,3160.6,0.05830607]
[1731767794354,9.48885,3161.6,3160.1,6.20653798]
[1731767794565,3.16374,3160.9,3160.7,0.05829026]
[1731767794781,3.16374,3160.9,3160.2,3.16434]
[1731767795050,3.16374,3160.9,3160.3,3.16425]
[1731767795260,3.0,3161.5,3160.4,0.0583926]
[1731767795411,3.16312,3161.5,3160.5,3.04208798]
[1731767795615,3.16312,3161.5,3160.6,3.28534606]
[1731767796053,3.16313,3161.5,3160.8,3.16372]
[1731767796213,3.16313,3161.5,3160.9,0.0580974]
[1731767796416,3.16285,3161.7,3161.0,3.16355]
[1731767796642,3.16248,3162.1,3161.1,0.05804698]
[1731767796962,3.16248,3162.1,3161.1,3.28473023]
[1731767796963,3.16257,3162.0,3161.1,3.28473023]
[1731767797164,3.16266,3161.9,3161.2,3.16328]
[1731767797317,0.316248,3162.1,3161.1,0.05804698]
[1731767797512,3.16291,3161.7,3161.3,0.05610895]
[1731767797717,3.16286,3161.7,3161.2,0.05614305]
[1731767797914,0.316248,3162.1,3161.1,3.22670807]
[1731767797915,3.1627,3161.9,3161.1,3.22670807]
[1731767798147,6.84788195,3162.8,3161.5,3.16305]
[1731767798357,3.16232,3162.3,3161.5,3.16298]
[1731767798564,3.16213,3162.5,3161.8,3.16272]
[1731767798762,3.16217,3162.4,3161.8,3.16272]
[1731767799054,0.63243,3162.4,3161.9,0.05570299]
[1731767799361,0.63243,3162.4,3161.1,0.36488728]
[1731767799362,3.1621,3162.5,3161.8,3.16266]
[1731767799521,3.1621,3162.5,3161.9,3.16264]
[1731767799857,3.16186,3162.7,3162.0,3.16252]
[1731767800157,0.6477585,3163.1,3161.2,0.55]
[1731767800158,3.16219,3162.4,3162.1,0.0557475]
[1731767800387,3.16227,3162.3,3162.1,0.0557475]
[1731767800536,3.16227,3162.3,3161.7,3.16283]
[1731767801039,3.1621,3162.5,3161.8,0.05583193]
[1731767801579,3.16218,3162.4,3161.8,0.05583193]
[1731767801792,3.16198,3162.6,3161.8,3.54035812]
[1731767802078,3.8092085,3163.1,3161.8,0.37769812]
[1731767802284,3.16167,3162.9,3162.1,3.16245]
[1731767802438,3.16225,3162.4,3162.2,0.05567785]
[1731767802637,3.68607195,3163.2,3161.6,3.16294]
[1731767802638,3.16165,3162.9,3161.6,3.16294]
[1731767802931,3.16225,3162.3,3161.7,0.05586008]
[1731767803130,0.316165,3162.8,3161.7,0.05586008]
[1731767803131,0.316165,3162.8,3161.7,0.04586008]
[1731767803330,3.0,3163.1,3161.9,3.16264]
[1731767803583,3.16205,3162.5,3161.7,3.20869008]
[1731767803872,3.16186,3162.7,3161.8,0.06325276]
[1731767804142,3.16185,3162.7,3162.0,3.16248]
[1731767804444,3.16166,3162.9,3162.1,3.21765259]
[1731767804648,3.16177,3162.8,3162.1,3.21765259]
[1731767805149,3.16157,3163.0,3162.2,0.32176526]
[1731767805354,3.16157,3163.0,3162.3,3.16218]
[1731767805554,3.16157,3163.0,3162.3,3.21695864]
[1731767805975,3.16155,3163.0,3162.3,0.05477864]
[1731767806189,3.0,3163.5,3162.3,0.11801954]
[1731767806512,3.68607195,3164.4,3162.9,3.16165]
[1731767806513,3.16098,3163.6,3162.9,3.16165]
[1731767806857,3.16098,3163.6,3162.3,0.12801954]
[1731767806858,3.16098,3163.6,3163.0,0.05445142]
[1731767807061,3.16098,3163.6,3162.6,3.16194]
[1731767807271,3.16098,3163.6,3162.9,3.16162]
[1731767807591,3.16098,3163.6,3163.0,0.05452254]
[1731767807803,3.16078,3163.8,3163.1,3.16145]
[1731767808310,3.16078,3163.8,3163.2,0.05445445]
[1731767808475,3.16103,3163.6,3163.2,0.05445445]
[1731767808802,3.16103,3163.6,3162.9,3.1616]
[1731767808998,3.16103,3163.6,3163.3,0.05442041]
[1731767809304,3.16103,3163.6,3162.9,3.1616]
[1731767809305,3.16103,3163.6,3163.4,0.05438636]
[1731767809508,6.32139,3163.9,3163.4,0.05438636]
[1731767809668,3.16073,3163.9,3163.1,3.16135]
[1731767810006,3.16073,3163.9,3163.2,0.05445445]
[1731767810564,3.16079,3163.8,3163.2,3.21579445]
[1731767810765,3.16073,3163.9,3163.2,3.16134]
[1731767811022,3.16073,3163.9,3163.3,0.05442041]
[1731767811167,3.16048,3164.1,3163.3,0.05442041]
[1731767811368,3.16048,3164.1,3163.3,0.1176383]
[1731767811674,3.16004,3164.6,3163.7,3.68607195]
[1731767811830,3.16004,3164.6,3164.0,3.16054]
[1731767812010,3.16004,3164.6,3163.4,0.56]
[1731767812011,3.16004,3164.6,3163.9,3.16063]
[1731767812321,0.63198,3164.6,3164.0,3.21441068]
[1731767812529,3.15986,3164.7,3164.0,0.05390068]
[1731767812821,3.15986,3164.7,3164.0,3.21445068]
[1731767813323,3.15971,3164.9,3164.1,3.22364426]
[1731767813682,3.15976,3164.8,3164.2,0.05370407]
[1731767813908,0.316925,3165.2,3164.2,0.05370407]
[1731767814096,3.15998,3164.6,3164.2,0.05370407]
[1731767814305,3.15932,3165.3,3164.0,3.16054]
[1731767814492,3.15986,3164.7,3164.3,0.05361509]
[1731767814693,3.15986,3164.7,3163.8,6.16073]
[1731767814694,3.15969,3164.9,3163.8,3.01]
[1731767814924,3.15987,3164.7,3163.9,3.88499839]
[1731767815087,3.15969,3164.9,3163.9,3.88499839]
[1731767815088,3.15982,3164.8,3164.0,3.16054]
[1731767815290,3.15969,3164.9,3164.1,3.21408314]
[1731767815714,3.0,3165.6,3164.1,3.21408314]
[1731767815715,3.15985,3164.7,3164.1,0.05368314]
[1731767816024,3.16012,3164.5,3164.1,0.05368314]
[1731767816216,3.16012,3164.5,3163.4,3.56]
[1731767816217,3.16012,3164.5,3163.4,3.57]
[1731767816417,3.16012,3164.5,3163.8,3.16067]
[1731767816644,3.16012,3164.5,3163.9,0.05372505]
[1731767816841,3.16002,3164.6,3163.9,3.21437505]
[1731767817047,3.8236105,3164.6,3163.9,3.21437505]
[1731767818037,3.16006,3164.5,3163.9,0.05372505]
[1731767818244,3.16006,3164.5,3163.8,3.16074]
[1731767818464,3.16006,3164.5,3163.9,0.05372505]
[1731767819966,0.315985,3164.7,3164.0,0.06320596]
[1731767820164,3.1596,3165.0,3164.2,3.16033]
[1731767820321,3.475634,3164.9,3164.3,3.16025]
[1731767820516,0.315964,3164.9,3164.3,3.21385203]
[1731767820752,3.1595,3165.1,3164.3,3.21385203]
[1731767821260,3.15901,3165.6,3164.7,6.84592195]
[1731767821261,3.15917,3165.4,3164.7,6.84592195]
[1731767821557,3.15917,3165.4,3164.8,0.05336837]
[1731767821769,3.15896,3165.6,3164.8,0.05336837]
[1731767821770,3.15926,3165.3,3164.8,0.05336837]
[1731767821916,3.15926,3165.3,3164.8,0.36846837]
[1731767822115,3.15926,3165.3,3164.7,6.84592195]
[1731767822320,3.15926,3165.3,3164.9,0.05329239]
[1731767822558,3.15926,3165.3,3164.7,6.84592195]
[1731767822559,3.15926,3165.3,3164.8,0.05329091]
[1731767822732,3.15926,3165.3,3165.0,0.05322291]
[1731767822933,3.15926,3165.3,3164.9,0.05328648]
[1731767823141,3.15926,3165.3,3165.1,0.05321847]
[1731767823353,3.15911,3165.5,3165.0,0.05325247]
[1731767823564,3.15864,3166.0,3165.2,0.05318448]
[1731767823740,3.15836,3166.2,3165.3,3.15925]
[1731767823945,3.1583,3166.3,3165.5,3.15898]
[1731767824138,3.789936,3166.3,3165.5,3.15899]
[1731767824334,3.789936,3166.3,3165.2,0.55]
[1731767824335,0.631636,3166.3,3165.6,0.05292845]
[1731767824678,3.15863,3166.0,3165.2,0.55]
[1731767824879,3.15863,3166.0,3165.3,3.21226042]
[1731767825736,3.15843,3166.2,3165.5,3.15904]
[1731767825964,3.15858,3166.0,3165.3,3.21227042]
[1731767826159,3.15836,3166.2,3165.6,0.05292845]
[1731767826375,3.474316,3166.1,3165.4,3.15914]
[1731767826557,3.474316,3166.1,3165.7,0.05289446]
[1731767826756,3.15856,3166.0,3165.3,3.15924]
[1731767827071,0.315836,3166.1,3165.5,3.15898]
[1731767827267,0.315836,3166.1,3165.6,3.21186845]
[1731767827731,3.15823,3166.4,3165.7,0.06316918]
[1731767827932,3.158,3166.6,3165.8,3.15875]
[1731767828229,3.15706,3167.5,3165.8,0.05286048]
[1731767828471,3.15814,3166.5,3165.8,0.05286048]
[1731767828642,3.15788,3166.7,3165.8,0.05286048]
[1731767828843,3.15816,3166.4,3165.8,0.05286048]
[1731767829575,3.15834,3166.3,3165.8,0.05286048]
[1731767829933,3.473758,3166.6,3165.7,3.0]
[1731767830134,3.473758,3166.6,3165.9,0.0528265]
[1731767830333,3.473758,3166.6,3165.9,3.22181269]
[1731767830540,3.15776,3166.8,3166.0,0.05279252]
[1731767830780,3.15776,3166.8,3166.1,3.22161031]
[1731767831075,3.15776,3166.8,3166.2,0.05272456]
[1731767831880,3.15758,3167.0,3166.2,3.21106456]
[1731767832048,3.15758,3167.0,3166.2,6.89713651]
[1731767832259,3.15758,3167.0,3166.4,3.15814]
[1731767832446,3.15758,3167.0,3166.5,0.05262265]
[1731767833070,3.15758,3167.0,3166.5,0.11577579]
[1731767833989,3.15721,3167.4,3166.8,3.15775]
[1731767834278,3.15701,3167.6,3166.9,3.27302954]
[1731767834489,3.15688,3167.7,3167.0,3.15754]
[1731767834638,3.472568,3167.7,3167.1,0.11530632]
[1731767835066,3.15641,3168.2,3167.4,3.15708]
[1731767835272,3.15608,3168.5,3167.5,0.11503629]
[1731767835440,3.15635,3168.3,3167.6,3.0]
[1731767835654,3.15635,3168.3,3167.7,0.11496197]
[1731767836166,3.15607,3168.5,3167.7,3.27181197]
[1731767836778,3.15589,3168.7,3167.7,0.11496197]
[1731767836779,3.15586,3168.7,3167.7,0.11496197]
[1731767837089,3.5031635,3168.6,3167.7,0.05183189]
[1731767837389,3.5031635,3168.6,3167.0,3.15753]
[1731767837390,3.15741,3167.2,3166.5,3.15798]
[1731767837742,3.15741,3167.2,3166.6,0.01]
[1731767837941,3.15717,3167.4,3166.6,0.01]
[1731767838160,3.472887,3167.4,3166.6,0.01]
[1731767838373,3.472887,3167.4,3166.4,3.16814]
[1731767838374,0.315717,3167.4,3166.4,3.78438808]
[1731767838573,3.15726,3167.3,3166.5,3.0]
[1731767838742,3.15707,3167.5,3166.7,3.0]
[1731767839079,4.550909,3171.1,3166.7,3.0]
[1731767839080,3.0,3168.2,3167.0,3.15748]
[1731767839283,3.15677,3167.8,3167.1,3.22058058]
[1731767839577,3.15677,3167.8,3166.9,3.15766]
[1731767839781,3.15677,3167.8,3166.5,3.15805]
[1731767839782,3.15686,3167.7,3166.5,3.15805]
[1731767839945,3.15733,3167.3,3166.3,3.16824]
[1731767840142,3.15733,3167.3,3166.5,3.15804]
[1731767840348,3.15739,3167.2,3166.5,3.15804]
[1731767840641,0.315677,3167.8,3166.7,3.15785]
[1731767840842,3.15695,3167.7,3167.0,3.15755]
[1731767841042,3.15695,3167.7,3166.8,3.22089756]
[1731767841043,3.15668,3167.9,3166.6,0.01]
[1731767841283,3.15677,3167.8,3166.8,3.15776]
[1731767841447,3.15677,3167.8,3167.0,3.15751]
[1731767841694,3.15686,3167.7,3167.0,3.15751]
[1731767841853,0.631333,3167.8,3166.8,3.15776]
[1731767842141,3.15705,3167.6,3166.9,3.15765]
[1731767842755,3.15705,3167.6,3166.7,6.1578]
[1731767842962,3.15726,3167.3,3166.7,3.1578]
[1731767843466,3.15726,3167.3,3166.5,3.15805]
[1731767843467,3.15716,3167.4,3166.6,3.0]
[1731767843674,3.15716,3167.4,3166.7,0.06314893]
[1731767843871,3.1574,3167.2,3166.7,0.06314893]